{"text_format":"1","workbook":"xlsx","n_sheets":3,"sheets":["Blad 1","Blad2","Blad3"],"not_rendered":{"charts":0,"images":3,"macros":0,"external_links":0,"defined_names":1,"comments":0,"pivot_tables":0},"unopened":[],"bounds":{"document_bytes":16777216,"sheet_cells":100000,"rows_first":2000,"rows_last":500,"rows_between":2000,"halvings":0,"cell_chars":16384,"cell_head_chars":4096},"cells_cut":0,"cells_raw":0,"read":"whole","date_system":"1900"}

{"sheet":"Blad 1","index":0,"n_rows":114,"n_cols":5,"rows_kept":114,"cut":false,"hidden":false,"merged":[[0,1,0,4],[1,1,1,4],[2,1,2,4],[3,1,3,4],[113,0,113,4]]}
["Naam :"]
["personen :"]
["Aankomst:"]
["Vertrek: "]
[]
[null,"U kan de blauwe zone's invullen "]
[]
["Omschrijving","Huurprijs","Aantal","Totaal","Kostprijs Schade/ Verlies"]
["1.     lijst van te huren materialen of materialen op aanvraag "]
["1.       Keuken "]
["Serviezen "]
[" Borden dia 24  - 102st",0.15,null,{"$f":"Tabel2[[#This Row],[Huurprijs]]*Tabel2[[#This Row],[Aantal]]","v":0},"4,00 €/st"]
[" Borden dia 27 - 102st",0.15,null,{"$f":"Tabel2[[#This Row],[Huurprijs]]*Tabel2[[#This Row],[Aantal]]","v":0},"5,00 €/st"]
[" Borden dia 19 - 102st",0.15,null,{"$f":"Tabel2[[#This Row],[Huurprijs]]*Tabel2[[#This Row],[Aantal]]","v":0},"3,00 €/st"]
[" Borden diep dia 21.5 - 102st ",0.15,null,{"$f":"Tabel2[[#This Row],[Huurprijs]]*Tabel2[[#This Row],[Aantal]]","v":0},"3,00 €/st"]
[" Bordenbak (hoogte 22 cm) - 6st",null,null,{"$f":"Tabel2[[#This Row],[Huurprijs]]*Tabel2[[#This Row],[Aantal]]","v":0},"15,00 €/st"]
[" Bordenbak (hoogte 27 cm) – 6st",null,null,{"$f":"Tabel2[[#This Row],[Huurprijs]]*Tabel2[[#This Row],[Aantal]]","v":0},"15,00 €/st"]
[" Bordenbak (hoogte 32 cm) – 4st",null,null,{"$f":"Tabel2[[#This Row],[Huurprijs]]*Tabel2[[#This Row],[Aantal]]","v":0},"15,00 €/st"]
[" Transportkar voor borden – 2st",null,null,{"$f":"Tabel2[[#This Row],[Huurprijs]]*Tabel2[[#This Row],[Aantal]]","v":0},"100,00 €/st"]
[" Vorken – 108st ",0.1,null,{"$f":"Tabel2[[#This Row],[Huurprijs]]*Tabel2[[#This Row],[Aantal]]","v":0},"3,00 €/st"]
[" Tafelmes – 108st",0.1,null,{"$f":"Tabel2[[#This Row],[Huurprijs]]*Tabel2[[#This Row],[Aantal]]","v":0},"5,00 €/st"]
[" Tafellepel – 108st",0.1,null,{"$f":"Tabel2[[#This Row],[Huurprijs]]*Tabel2[[#This Row],[Aantal]]","v":0},"3,00 €/st"]
[" Koffielepel – 108st",0.1,null,{"$f":"Tabel2[[#This Row],[Huurprijs]]*Tabel2[[#This Row],[Aantal]]","v":0},"3,00 €/st"]
[" Bestekbak met deksel  - 1st",null,null,{"$f":"Tabel2[[#This Row],[Huurprijs]]*Tabel2[[#This Row],[Aantal]]","v":0},"15,00 €/st"]
[" 4delige bestekbak grijs – 1st",null,null,{"$f":"Tabel2[[#This Row],[Huurprijs]]*Tabel2[[#This Row],[Aantal]]","v":0},"15,00 €/st"]
[" Koffiekop  - 102st",0.15,null,{"$f":"Tabel2[[#This Row],[Huurprijs]]*Tabel2[[#This Row],[Aantal]]","v":0},"3,00 €/st"]
[" Ondertas  - 102st",0.15,null,{"$f":"Tabel2[[#This Row],[Huurprijs]]*Tabel2[[#This Row],[Aantal]]","v":0},"3,00 €/st"]
[" Champagneglazen -204st",0.2,null,{"$f":"Tabel2[[#This Row],[Huurprijs]]*Tabel2[[#This Row],[Aantal]]","v":0},"5,00 €/st"]
[" Wijnglazen 24 cl – 204st",0.2,null,{"$f":"Tabel2[[#This Row],[Huurprijs]]*Tabel2[[#This Row],[Aantal]]","v":0},"5,00 €/st"]
[" Longdrinks 22 cl  - 156st",0.2,null,{"$f":"Tabel2[[#This Row],[Huurprijs]]*Tabel2[[#This Row],[Aantal]]","v":0},"5,00 €/st"]
[" Korven glazen (25 vaks)-  8 st",null,null,{"$f":"Tabel2[[#This Row],[Huurprijs]]*Tabel2[[#This Row],[Aantal]]","v":0},"50,00 €/st"]
[" Korven voetglazen (49 vaks) – 4st",null,null,{"$f":"Tabel2[[#This Row],[Huurprijs]]*Tabel2[[#This Row],[Aantal]]","v":0},"50,00 €/st"]
[" Korven bekerglazen (49 vaks)  - 3st",null,null,{"$f":"Tabel2[[#This Row],[Huurprijs]]*Tabel2[[#This Row],[Aantal]]","v":0},"50,00 €/st"]
[" Deksel vaatwaskorf – 2st",null,null,{"$f":"Tabel2[[#This Row],[Huurprijs]]*Tabel2[[#This Row],[Aantal]]","v":0},"25,00 €/st"]
[" Transportwagen voor korven - 2st",null,null,{"$f":"Tabel2[[#This Row],[Huurprijs]]*Tabel2[[#This Row],[Aantal]]","v":0},"100,00 €/st"]
["Potten en Pannen"]
[" Braadpan dia 32 – 2st",null,null,{"$f":"Tabel2[[#This Row],[Huurprijs]]*Tabel2[[#This Row],[Aantal]]","v":0},"25,00 €/st"]
[" Braadpan dia 28 – 2st",null,null,{"$f":"Tabel2[[#This Row],[Huurprijs]]*Tabel2[[#This Row],[Aantal]]","v":0},"20,00 €/st"]
["Toestellen "]
[" Vaatmachine ( =  enkel gratis bij huur borden en serviezen tbv 100 euro) ",35,null,{"$f":"Tabel2[[#This Row],[Huurprijs]]*Tabel2[[#This Row],[Aantal]]","v":0},"3000,00 €/st"]
["         met onderstel",null,null,{"$f":"Tabel2[[#This Row],[Huurprijs]]*Tabel2[[#This Row],[Aantal]]","v":0},"600,00 €/st"]
["         korven – 2st",null,null,{"$f":"Tabel2[[#This Row],[Huurprijs]]*Tabel2[[#This Row],[Aantal]]","v":0}]
["         beker voor bestek – 1st",null,null,{"$f":"Tabel2[[#This Row],[Huurprijs]]*Tabel2[[#This Row],[Aantal]]","v":0}]
["         vloeibare zeep ",10,null,{"$f":"Tabel2[[#This Row],[Huurprijs]]*Tabel2[[#This Row],[Aantal]]","v":0},112.45]
["Elektrische bain marie – 2st",30,null,{"$f":"Tabel2[[#This Row],[Huurprijs]]*Tabel2[[#This Row],[Aantal]]","v":0},"250,00 €/st"]
["Frigo’s"]
["Jumbo XL frigo 1st – 380liter - kelder -GRATIS ",0,null,{"$f":"Tabel2[[#This Row],[Huurprijs]]*Tabel2[[#This Row],[Aantal]]","v":0},"1.500,00€/st"]
["Jumbo XL frigo 1st – 380 liter - kelder (max 1st)",50,null,{"$f":"Tabel2[[#This Row],[Huurprijs]]*Tabel2[[#This Row],[Aantal]]","v":0},"1.500,00€/st"]
["Professioneel gerief op aanvraag"]
[" Mixer 15l  - 1st",null,null,{"$f":"Tabel2[[#This Row],[Huurprijs]]*Tabel2[[#This Row],[Aantal]]","v":0},"500,00 €/st"]
[" Demi chef Sabatier (Chefmes) 23cm – 1st",null,null,{"$f":"Tabel2[[#This Row],[Huurprijs]]*Tabel2[[#This Row],[Aantal]]","v":0},"50,00 €/st"]
[" Broodmes 21 cm – 1st",null,null,{"$f":"Tabel2[[#This Row],[Huurprijs]]*Tabel2[[#This Row],[Aantal]]","v":0},"50,00 €/st"]
[" Aardappelschilmesje zwart 13 cm – 2st",null,null,{"$f":"Tabel2[[#This Row],[Huurprijs]]*Tabel2[[#This Row],[Aantal]]","v":0},"10,00 €/st"]
[" Mes getand – 1st",null,null,{"$f":"Tabel2[[#This Row],[Huurprijs]]*Tabel2[[#This Row],[Aantal]]","v":0},"15,00 €/st"]
[" Schaar 23 cm – 1st",null,null,{"$f":"Tabel2[[#This Row],[Huurprijs]]*Tabel2[[#This Row],[Aantal]]","v":0},"50,00 €/st"]
[" Dunschiller – 1st",null,null,{"$f":"Tabel2[[#This Row],[Huurprijs]]*Tabel2[[#This Row],[Aantal]]","v":0},"5,00 €/st"]
[" Fouet (klopper) inox – pvc handvat – 1st",null,null,{"$f":"Tabel2[[#This Row],[Huurprijs]]*Tabel2[[#This Row],[Aantal]]","v":0},"30,00 €/st"]
[" Schuimspaan 11 cm – 37 dia – 1st",null,null,{"$f":"Tabel2[[#This Row],[Huurprijs]]*Tabel2[[#This Row],[Aantal]]","v":0},"10,00 €/st"]
[" Pollepel dia12 – 50 cl – 1st",null,null,{"$f":"Tabel2[[#This Row],[Huurprijs]]*Tabel2[[#This Row],[Aantal]]","v":0},"30,00 €/st"]
[" Pollepel dia 8 – 12cl – 1st",null,null,{"$f":"Tabel2[[#This Row],[Huurprijs]]*Tabel2[[#This Row],[Aantal]]","v":0},"25,00 €/st"]
[" Spatel hittebestendig 40 cm – 1st",null,null,{"$f":"Tabel2[[#This Row],[Huurprijs]]*Tabel2[[#This Row],[Aantal]]","v":0},"15,00 €/st"]
[" Pottelikker – 1st",null,null,{"$f":"Tabel2[[#This Row],[Huurprijs]]*Tabel2[[#This Row],[Aantal]]","v":0},"15,00 €/st"]
[" Serveertang – 1st",null,null,{"$f":"Tabel2[[#This Row],[Huurprijs]]*Tabel2[[#This Row],[Aantal]]","v":0},"10,00 €/st"]
[" Wijnopener – 1st",null,null,{"$f":"Tabel2[[#This Row],[Huurprijs]]*Tabel2[[#This Row],[Aantal]]","v":0},"15,00 €/st"]
[" Blikopener – 1st",null,null,{"$f":"Tabel2[[#This Row],[Huurprijs]]*Tabel2[[#This Row],[Aantal]]","v":0},"11,50 €/st"]
[" Vergiet inox – 1st",null,null,{"$f":"Tabel2[[#This Row],[Huurprijs]]*Tabel2[[#This Row],[Aantal]]","v":0},"20,00 €/st"]
[" Zeef – 1st",null,null,{"$f":"Tabel2[[#This Row],[Huurprijs]]*Tabel2[[#This Row],[Aantal]]","v":0},"10,00 €/st"]
[" Keukenbol – 1st",null,null,{"$f":"Tabel2[[#This Row],[Huurprijs]]*Tabel2[[#This Row],[Aantal]]","v":0},"30,00 €/st"]
[" Spaghettitang – 1st",null,null,{"$f":"Tabel2[[#This Row],[Huurprijs]]*Tabel2[[#This Row],[Aantal]]","v":0},"30,00 €/st"]
[" Rasp – 1st",null,null,{"$f":"Tabel2[[#This Row],[Huurprijs]]*Tabel2[[#This Row],[Aantal]]","v":0},"30,00 €/st"]
[" Opdienlepel – 10st",null,null,{"$f":"Tabel2[[#This Row],[Huurprijs]]*Tabel2[[#This Row],[Aantal]]","v":0},"20,00 €/st"]
["Varia",null,null,{"$f":"Tabel2[[#This Row],[Huurprijs]]*Tabel2[[#This Row],[Aantal]]","v":0}]
[" Vuilniszakhouder",null,null,{"$f":"Tabel2[[#This Row],[Huurprijs]]*Tabel2[[#This Row],[Aantal]]","v":0},"150,00€/st"]
[" Magneetstrip + Magneten",null,null,{"$f":"Tabel2[[#This Row],[Huurprijs]]*Tabel2[[#This Row],[Aantal]]","v":0},"30,00 €/st"]
[" Witte snijplank",null,null,{"$f":"Tabel2[[#This Row],[Huurprijs]]*Tabel2[[#This Row],[Aantal]]","v":0},"40,00 €/st"]
["Bain Marie Elektrisch",30,null,{"$f":"Tabel2[[#This Row],[Huurprijs]]*Tabel2[[#This Row],[Aantal]]","v":0},"150,00 €/st"]
[" gastronorm inzet GN 1/3 =5,7L  (incl deksel en baren)– 6st",2,null,{"$f":"Tabel2[[#This Row],[Huurprijs]]*Tabel2[[#This Row],[Aantal]]","v":0},"50,00 €/st"]
[" gastronorm inzet GN 1/2 =9L  (incl deksel en baren)– 2st",2.5,null,{"$f":"Tabel2[[#This Row],[Huurprijs]]*Tabel2[[#This Row],[Aantal]]","v":0},"50,00 €/st"]
[" gastronorm inzet GN 1/1=20l  (incl deksel en baren)– 1st",3.5,null,{"$f":"Tabel2[[#This Row],[Huurprijs]]*Tabel2[[#This Row],[Aantal]]","v":0},"50,00 €/st"]
["Koffiezet",null,null,{"$f":"Tabel2[[#This Row],[Huurprijs]]*Tabel2[[#This Row],[Aantal]]","v":0}]
[" Apparaat – 1st",20,null,{"$f":"Tabel2[[#This Row],[Huurprijs]]*Tabel2[[#This Row],[Aantal]]","v":0},"750,00 €/st"]
["(inschuiffilter,3 filterpapieren inbegrepen, koffiemaatbeker, watermaatbeker, gebruiksaanwijzing)",null,null,{"$f":"Tabel2[[#This Row],[Huurprijs]]*Tabel2[[#This Row],[Aantal]]","v":0}]
["Perculator ",25,null,{"$f":"Tabel2[[#This Row],[Huurprijs]]*Tabel2[[#This Row],[Aantal]]","v":0},"750,00 €/st"]
["(3 papieren filters inbegrepen) ",null,null,{"$f":"Tabel2[[#This Row],[Huurprijs]]*Tabel2[[#This Row],[Aantal]]","v":0}]
[" inox Koffiepotten – 2st",null,null,{"$f":"Tabel2[[#This Row],[Huurprijs]]*Tabel2[[#This Row],[Aantal]]","v":0},"150,00 €/st"]
["2.      Zaal "]
["Frigo’s",null,null,{"$f":"Tabel2[[#This Row],[Huurprijs]]*Tabel2[[#This Row],[Aantal]]","v":0}]
["Samsung frigo (1st - kitchinette) - vriesvak onderaan (60cmx18cmx36cm + 60cmx23cmx23cm  bxhxd)",0,null,{"$f":"Tabel2[[#This Row],[Huurprijs]]*Tabel2[[#This Row],[Aantal]]","v":0},"1.000,00 €/st"]
["Frigobox  CABC (2st – gelijkvloers) - 349liter",30,null,{"$f":"Tabel2[[#This Row],[Huurprijs]]*Tabel2[[#This Row],[Aantal]]","v":0},"700,00 €/st "]
["Tafels & stoelen",null,null,{"$f":"Tabel2[[#This Row],[Huurprijs]]*Tabel2[[#This Row],[Aantal]]","v":0}]
["Lange tafels 183 cm -12 stuks inbegrepen",null,null,null,"75,00 €/st"]
["Lange tafels 183 cm -extra tot max 8 stuks",15,null,{"$f":"Tabel2[[#This Row],[Huurprijs]]*Tabel2[[#This Row],[Aantal]]","v":0},"75,00 €/st"]
["Stretchcover zwart  -10st",12,null,{"$f":"Tabel2[[#This Row],[Huurprijs]]*Tabel2[[#This Row],[Aantal]]","v":0},"50,00  €/st"]
[]
["Stretchcover zwart loshangend  -10st",15,null,{"$f":"Tabel2[[#This Row],[Huurprijs]]*Tabel2[[#This Row],[Aantal]]","v":0},"60,00  €/st"]
[]
["Zwarte leren stoelen – 30st",null,null,null,"75,00 €/st"]
["Zwarte stapelstoelen -50st (stoelen in berging/kelder afhalen en terugplaatsen)",null,null,null,"15,00 €/st"]
["Party tafels met stretchhoes (10 beschikbaar, kleur zwart of wit)",15,null,{"$f":"Tabel2[[#This Row],[Huurprijs]]*Tabel2[[#This Row],[Aantal]]","v":0},"120,00 €/st"]
["barstoel (bij huren van minimum 5 partytafels  - 20stuks beschikbaar)",4,null,{"$f":"Tabel2[[#This Row],[Huurprijs]]*Tabel2[[#This Row],[Aantal]]","v":0},"50,00 €/st"]
["Bartafel wit",50,null,{"$f":"Tabel2[[#This Row],[Huurprijs]]*Tabel2[[#This Row],[Aantal]]","v":0},"1.000,00 €/st"]
["Vierkante witte tafels -8st",null,null,null,"200,00 €/st"]
["Vierkante zwarte tafels – 16st",null,null,null,"200,00 €/st"]
["3.       Buiten "]
["Tuin",null,null,{"$f":"Tabel2[[#This Row],[Huurprijs]]*Tabel2[[#This Row],[Aantal]]","v":0}]
["Terrasverwarmers -2st",50,null,{"$f":"Tabel2[[#This Row],[Huurprijs]]*Tabel2[[#This Row],[Aantal]]","v":0},"200,00 €/st"]
["Parasol ",null,null,{"$f":"Tabel2[[#This Row],[Huurprijs]]*Tabel2[[#This Row],[Aantal]]","v":0},"150,00 €/st"]
["Springkasteel",125,null,{"$f":"Tabel2[[#This Row],[Huurprijs]]*Tabel2[[#This Row],[Aantal]]","v":0}]
["4.       Extra poetsdienst "]
["Alles Poetsen ",125,null,{"$f":"Tabel2[[#This Row],[Huurprijs]]*Tabel2[[#This Row],[Aantal]]","v":0}]
["Kelder Poetsen ",50,null,{"$f":"Tabel2[[#This Row],[Huurprijs]]*Tabel2[[#This Row],[Aantal]]","v":0}]
["Totaal",null,null,{"$f":"SUM(D12:D111)","v":0}]
[]
["Beschikbaar en inbegrepen = tafels + stoelen"]

{"sheet":"Blad2","index":1,"n_rows":0,"n_cols":0,"rows_kept":0,"cut":false,"hidden":false,"merged":[]}

{"sheet":"Blad3","index":2,"n_rows":0,"n_cols":0,"rows_kept":0,"cut":false,"hidden":false,"merged":[]}